[Event "European Union U14-ch 2024"]
[Site "Roznov pod Radhostem"]
[Date "2024.08.09"]
[Round "5.5"]
[White "Golub, Mia"]
[Black "Ochkova, Maria"]
[Result "0-1"]
[ECO "D35"]
[WhiteElo "1418"]
[BlackElo "1553"]
[Annotator "NA RC"]
[PlyCount "54"]
[EventDate "2024.08.02"]
[EventType "swiss"]
[EventCountry "CZE"]
[SourceTitle "playchess.com"]
[Source "ChessBase"]
[SourceQuality "1"]
[TimeControl "5400+30"]

1. d4 {[%emt 0:00:02]} Nf6 {[%emt 0:00:12]} 2. c4 {[%emt 0:00:30]} e6 {[%emt 0:00:10]} 3. Nc3 {[%emt 0:01:45]} d5 {[%emt 0:00:10]} 4. cxd5 {[%emt 0:02:07]} exd5 {[%emt 0:00:06]} 5. Nf3 {[%emt 0:01:42]} Be7 {[%emt 0:00:07]} 6. Bf4 {[%emt 0:00:47]} O-O {[%emt 0:00:21]} 7. Qc2 {[%emt 0:01:30]} Nbd7 {[%emt 0:01:56]} 8. e3 {[%emt 0:02:25]} Re8 {[%emt 0:00:45]} 9. Bd3 {[%emt 0:01:47]} Nf8 {[%emt 0:00:45]} 10. Ne5 {[%emt 0:03:26]} Ne6 {[%emt 0:05:20]} 11. Ne2 {[%emt 0:03:03]} Bb4+ {[%emt 0:01:16]} 12. Nc3 {[%emt 0:02:05]} c5 {[%emt 0:02:33]} 13. dxc5 {[%emt 0:03:15]} Nxf4 {[%emt 0:02:12]} 14. exf4 {[%emt 0:00:50]} d4 {[%emt 0:00:15]} 15. Qb3 {[%emt 0:03:05]} dxc3 {[%emt 0:02:23]} 16. Qxb4 {[%emt 0:03:03]} Qxd3 {[%emt 0:00:12]} 17. Qxc3 {[%emt 0:07:46]} Qxc3+ {[%emt 0:00:06]} 18. bxc3 {[%emt 0:00:08]} Nd5 {[%emt 0:00:05]} 19. Rc1 {[%emt 0:03:27]} f6 {[%emt 0:00:08]} 20. O-O {[%emt 0:04:26]} fxe5 {[%emt 0:00:16]} 21. fxe5 {[%emt 0:04:32]} Rxe5 {[%emt 0:00:44]} 22. Rfd1 {[%emt 0:01:43]} Bf5 {[%emt 0:00:25]} 23. h3 {[%emt 0:03:24]} Nf4 {[%emt 0:00:14]} 24. Kh2 {[%emt 0:07:14]} Rxc5 {[%emt 0:00:18]} 25. Rd2 {[%emt 0:01:33]} Rac8 {[%emt 0:01:04]} 26. g3 {[%emt 0:03:27]} Nd3 {[%emt 0:00:18]} 27. Kg2 {[%emt 0:02:23]} Nxc1 {[%emt 0:00:07]} 0-1

[Event "European Union U14-ch 2024"]
[Site "Roznov pod Radhostem"]
[Date "2024.08.09"]
[Round "5.6"]
[White "Pritulina, Nadezhda"]
[Black "Duchatel, Maxime"]
[Result "0-1"]
[ECO "A00"]
[WhiteElo "1589"]
[BlackElo "1682"]
[Annotator "NA RC"]
[PlyCount "80"]
[EventDate "2024.08.02"]
[EventType "swiss"]
[EventCountry "CZE"]
[SourceTitle "playchess.com"]
[Source "ChessBase"]
[SourceQuality "1"]
[TimeControl "5400+30"]

1. b4 {[%emt 0:00:01]} e5 {[%emt 0:00:06]} 2. Bb2 {[%emt 0:00:03]} Bxb4 {[%emt 0:00:09]} 3. Bxe5 {[%emt 0:00:04]} Nf6 {[%emt 0:00:10]} 4. Nf3 {[%emt 0:00:50]} O-O {[%emt 0:00:08]} 5. e3 {[%emt 0:00:08]} d5 {[%emt 0:00:11]} 6. Be2 {[%emt 0:00:33]} c5 {[%emt 0:00:05]} 7. c3 {[%emt 0:00:06]} Ba5 {[%emt 0:00:16]} 8. d4 {[%emt 0:00:11]} cxd4 {[%emt 0:03:08]} 9. exd4 {[%emt 0:02:41]} Ne4 {[%emt 0:00:15]} 10. Qc2 {[%emt 0:01:49]} Nc6 {[%emt 0:02:53]} 11. Bf4 {[%emt 0:01:31]} Bf5 {[%emt 0:03:49]} 12. Qb3 {[%emt 0:07:17]} Qf6 {[%emt 0:07:58]} 13. O-O {[%emt 0:02:30]} Nxf2 {[%emt 0:07:21]} 14. Rxf2 {[%emt 0:09:30]} Bxb1 {[%emt 0:00:23]} 15. Bg5 {[%emt 0:00:08]} Qg6 {[%emt 0:01:04]} 16. Rxb1 {[%emt 0:01:34]} Bxc3 {[%emt 0:01:06]} 17. Rd1 {[%emt 0:00:26]} Bxd4 {[%emt 0:01:33]} 18. Nxd4 {[%emt 0:01:29]} Nxd4 {[%emt 0:05:13]} 19. Rxd4 {[%emt 0:00:09]} Qxg5 {[%emt 0:00:14]} 20. Qxd5 {[%emt 0:00:18]} Qc1+ {[%emt 0:00:44]} 21. Rd1 {[%emt 0:00:38]} Qc7 {[%emt 0:00:28]} 22. Bf3 {[%emt 0:00:49]} Rad8 {[%emt 0:01:28]} 23. Qb3 {[%emt 0:00:19]} Rxd1+ {[%emt 0:01:28]} 24. Bxd1 {[%emt 0:00:14]} Rd8 {[%emt 0:02:30]} 25. Bf3 {[%emt 0:01:36]} b6 {[%emt 0:00:21]} 26. Bd5 {[%emt 0:00:19]} Qc1+ {[%emt 0:00:57]} 27. Rf1 {[%emt 0:00:10]} Qc5+ {[%emt 0:00:05]} 28. Kh1 {[%emt 0:00:15]} Qxd5 {[%emt 0:00:05]} 29. Qa3 {[%emt 0:01:04]} Qd3 {[%emt 0:00:50]} 30. Qc1 {[%emt 0:00:35]} h6 {[%emt 0:00:38]} 31. Qf4 {[%emt 0:00:58]} Qg6 {[%emt 0:00:45]} 32. h3 {[%emt 0:01:25]} Rc8 {[%emt 0:05:27]} 33. Rf3 {[%emt 0:01:49]} Qb1+ {[%emt 0:05:14]} 34. Kh2 {[%emt 0:00:05]} Qxa2 {[%emt 0:00:08]} 35. Rg3 {[%emt 0:00:14]} Qe6 {[%emt 0:00:29]} 36. Qd4 {[%emt 0:00:28]} f6 {[%emt 0:00:47]} 37. Qh4 {[%emt 0:01:04]} Kh7 {[%emt 0:00:31]} 38. Qh5 {[%emt 0:01:01]} f5 {[%emt 0:01:49]} 39. Rg5 {[%emt 0:01:23]} Qe5+ {[%emt 0:02:57]} 40. Rg3 {[%emt 0:00:10]} Rc3 {[%emt 0:00:46]} 0-1

[Event "European Union U14-ch 2024"]
[Site "Roznov pod Radhostem"]
[Date "2024.08.09"]
[Round "5.7"]
[White "Bartova, Hana"]
[Black "Myronova, Sofia"]
[Result "1-0"]
[ECO "B30"]
[WhiteElo "1796"]
[BlackElo "1463"]
[Annotator "NA RC"]
[PlyCount "119"]
[EventDate "2024.08.02"]
[EventType "swiss"]
[EventCountry "CZE"]
[SourceTitle "playchess.com"]
[Source "ChessBase"]
[SourceQuality "1"]
[TimeControl "5400+30"]

1. e4 {[%emt 0:00:02]} c5 {[%emt 0:00:16]} 2. Nf3 {[%emt 0:00:05]} Nc6 {[%emt 0:00:38]} 3. Bb5 {[%emt 0:02:49]} d6 {[%emt 0:01:15]} 4. O-O {[%emt 0:03:08]} Bd7 {[%emt 0:01:15]} 5. Re1 {[%emt 0:00:32]} g6 {[%emt 0:01:04]} 6. Nc3 {[%emt 0:06:21]} Bg7 {[%emt 0:02:14]} 7. Bf1 {[%emt 0:00:17]} Nf6 {[%emt 0:00:58]} 8. d3 {[%emt 0:00:14]} O-O {[%emt 0:01:02]} 9. h3 {[%emt 0:01:23]} a6 {[%emt 0:09:35]} 10. a4 {[%emt 0:06:08]} Nd4 {[%emt 0:01:55]} 11. Nxd4 {[%emt 0:04:22]} cxd4 {[%emt 0:01:26]} 12. Ne2 {[%emt 0:00:19]} Qb6 {[%emt 0:01:07]} 13. Kh1 {[%emt 0:07:36]} Rac8 {[%emt 0:01:08]} 14. b3 {[%emt 0:13:01]} Qc5 {[%emt 0:04:24]} 15. Ra2 {[%emt 0:02:33]} Nh5 {[%emt 0:13:52]} 16. g4 {[%emt 0:13:33]} Nf6 {[%emt 0:01:06]} 17. Bg2 {[%emt 0:00:49]} Rc7 {[%emt 0:09:52]} 18. Ba3 {[%emt 0:04:14]} Qa5 {[%emt 0:04:23]} 19. Bc1 {[%emt 0:17:23]} Rcc8 {[%emt 0:13:11]} 20. Rf1 {[%emt 0:03:57]} e5 {[%emt 0:03:25]} 21. f4 {[%emt 0:00:56]} exf4 {[%emt 0:01:46]} 22. Bxf4 {[%emt 0:00:38]} Qc5 {[%emt 0:00:43]} 23. Bd2 {[%emt 0:00:46]} Ne8 {[%emt 0:04:07]} 24. b4 {[%emt 0:00:50]} Qc7 {[%emt 0:00:11]} 25. Nf4 {[%emt 0:01:56]} Be6 {[%emt 0:01:40]} 26. Nxe6 {[%emt 0:02:32]} fxe6 {[%emt 0:00:16]} 27. Rxf8+ {[%emt 0:00:05]} Kxf8 {[%emt 0:00:05]} 28. Qf3+ {[%emt 0:00:35]} Qf7 {[%emt 0:01:03]} 29. Qxf7+ {[%emt 0:00:46]} Kxf7 {[%emt 0:00:07]} 30. Bf4 {[%emt 0:00:58]} e5 {[%emt 0:00:10]} 31. Bd2 {[%emt 0:00:07]} Nf6 {[%emt 0:00:29]} 32. Kg1 {[%emt 0:00:18]} Ke6 {[%emt 0:00:59]} 33. Kf2 {[%emt 0:01:43]} d5 {[%emt 0:00:18]} 34. g5 {[%emt 0:00:34]} Nd7 {[%emt 0:01:10]} 35. exd5+ {[%emt 0:00:35]} Kd6 {[%emt 0:00:12]} 36. a5 {[%emt 0:01:34]} Rf8+ {[%emt 0:00:16]} 37. Ke1 {[%emt 0:00:21]} Ra8 {[%emt 0:01:11]} 38. Rb2 {[%emt 0:01:09]} b5 {[%emt 0:01:18]} 39. c3 {[%emt 0:02:12]} dxc3 {[%emt 0:00:58]} 40. Bxc3 {[%emt 0:00:00]} Rc8 {[%emt 0:00:34]} 41. Rc2 {[%emt 0:01:14]} Rc7 {[%emt 0:01:01]} 42. Kd2 {[%emt 0:00:31]} Nf8 {[%emt 0:01:49]} 43. Bb2 {[%emt 0:01:12]} Rxc2+ {[%emt 0:00:42]} 44. Kxc2 {[%emt 0:00:02]} Nd7 {[%emt 0:00:29]} 45. Kd2 {[%emt 0:00:54]} Kc7 {[%emt 0:01:10]} 46. Ke3 {[%emt 0:00:54]} Kd6 {[%emt 0:00:29]} 47. Ke4 {[%emt 0:00:19]} Nf8 {[%emt 0:00:55]} 48. Bf3 {[%emt 0:00:21]} Nd7 {[%emt 0:00:48]} 49. Bg4 {[%emt 0:00:15]} Nb8 {[%emt 0:00:54]} 50. h4 {[%emt 0:00:45]} Bh8 {[%emt 0:00:18]} 51. h5 {[%emt 0:00:24]} gxh5 {[%emt 0:00:12]} 52. Bxh5 {[%emt 0:00:01]} Nd7 {[%emt 0:00:22]} 53. Bg4 {[%emt 0:00:27]} Nf8 {[%emt 0:00:26]} 54. Bf5 {[%emt 0:00:31]} Ng6 {[%emt 0:00:05]} 55. Bxg6 {[%emt 0:00:08]} hxg6 {[%emt 0:00:10]} 56. d4 {[%emt 0:00:05]} exd4 {[%emt 0:00:19]} 57. Bxd4 {[%emt 0:00:02]} Bxd4 {[%emt 0:00:15]} 58. Kxd4 {[%emt 0:00:01]} Kd7 {[%emt 0:00:16]} 59. Ke5 {[%emt 0:00:07]} Ke7 {[%emt 0:00:16]} 60. d6+ {[%emt 0:00:38]} 1-0

[Event "European Union U14-ch 2024"]
[Site "Roznov pod Radhostem"]
[Date "2024.08.10"]
[Round "6.1"]
[White "Stara, Zuzana"]
[Black "Bocquenet-Drouode, Hugo"]
[Result "1/2-1/2"]
[ECO "B26"]
[WhiteElo "2005"]
[BlackElo "2025"]
[Annotator "NA RC"]
[PlyCount "63"]
[EventDate "2024.08.02"]
[EventType "swiss"]
[EventCountry "CZE"]
[SourceTitle "playchess.com"]
[Source "ChessBase"]
[SourceQuality "1"]
[TimeControl "5400+30"]

1. e4 {[%emt 0:00:01]} c5 {[%emt 0:00:06]} 2. Nc3 {[%emt 0:00:17]} Nc6 {[%emt 0:00:07]} 3. g3 {[%emt 0:00:05]} d6 {[%emt 0:00:48]} 4. Bg2 {[%emt 0:00:13]} g6 {[%emt 0:00:50]} 5. d3 {[%emt 0:00:04]} Bg7 {[%emt 0:01:08]} 6. Be3 {[%emt 0:01:02]} Rb8 {[%emt 0:01:38]} 7. Nh3 {[%emt 0:03:46]} b5 {[%emt 0:08:43]} 8. Rb1 {[%emt 0:06:00]} b4 {[%emt 0:02:42]} 9. Ne2 {[%emt 0:01:53]} Qa5 {[%emt 0:06:26]} 10. O-O {[%emt 0:02:43]} e6 {[%emt 0:07:56]} 11. Qd2 {[%emt 0:01:17]} Nd4 {[%emt 0:04:51]} 12. Bxd4 {[%emt 0:11:32]} cxd4 {[%emt 0:01:41]} 13. f4 {[%emt 0:00:24]} Ne7 {[%emt 0:01:40]} 14. Ng5 {[%emt 0:09:58]} O-O {[%emt 0:03:47]} 15. Nf3 {[%emt 0:05:49]} e5 16. a3 {[%emt 0:20:20]} Qc5 {[%emt 0:09:32]} 17. axb4 {[%emt 0:07:13]} Rxb4 {[%emt 0:00:55]} 18. Kh1 {[%emt 0:03:01]} Qb6 {[%emt 0:16:38]} 19. b3 {[%emt 0:04:08]} Be6 {[%emt 0:02:53]} 20. Nh4 {[%emt 0:02:52]} f6 {[%emt 0:04:38]} 21. Ra1 {[%emt 0:02:25]} Rb5 {[%emt 0:01:55]} 22. f5 {[%emt 0:01:25]} Bf7 {[%emt 0:00:15]} 23. fxg6 {[%emt 0:02:00]} hxg6 {[%emt 0:00:07]} 24. Bh3 {[%emt 0:00:26]} d5 {[%emt 0:03:21]} 25. Ra4 {[%emt 0:00:49]} Rc5 {[%emt 0:02:59]} 26. Rfa1 {[%emt 0:00:48]} dxe4 {[%emt 0:03:22]} 27. dxe4 {[%emt 0:00:19]} Rc7 {[%emt 0:06:36]} 28. Ra6 {[%emt 0:01:45]} Qc5 {[%emt 0:00:21]} 29. R1a2 {[%emt 0:00:39]} Nc6 {[%emt 0:01:15]} 30. Nc1 {[%emt 0:03:31]} Nb8 {[%emt 0:03:09]} 31. Nd3 {[%emt 0:00:43]} Qe7 {[%emt 0:00:52]} 32. R6a4 {[%emt 0:00:44]} 1/2-1/2

[Event "European Union U14-ch 2024"]
[Site "Roznov pod Radhostem"]
[Date "2024.08.10"]
[Round "6.2"]
[White "Constantinoiu, Alexandru Ioan"]
[Black "Michalska, Lena"]
[Result "1/2-1/2"]
[ECO "B27"]
[WhiteElo "1904"]
[BlackElo "1837"]
[Annotator "NA RC"]
[PlyCount "108"]
[EventDate "2024.08.02"]
[EventType "swiss"]
[EventCountry "CZE"]
[SourceTitle "playchess.com"]
[Source "ChessBase"]
[SourceQuality "1"]
[TimeControl "5400+30"]

1. e4 {[%emt 0:00:04]} c5 {[%emt 0:00:02]} 2. Nf3 {[%emt 0:00:12]} g6 {[%emt 0:00:05]} 3. d4 {[%emt 0:00:25]} cxd4 {[%emt 0:00:04]} 4. Nxd4 {[%emt 0:00:25]} Bg7 {[%emt 0:00:05]} 5. Nc3 {[%emt 0:00:12]} Nc6 {[%emt 0:00:05]} 6. Be3 {[%emt 0:00:21]} Nf6 {[%emt 0:00:05]} 7. Nb3 {[%emt 0:00:39]} d6 {[%emt 0:00:25]} 8. f3 {[%emt 0:00:31]} Be6 {[%emt 0:00:07]} 9. Qd2 {[%emt 0:00:52]} d5 {[%emt 0:03:34]} 10. exd5 {[%emt 0:00:34]} Nxd5 {[%emt 0:00:07]} 11. Nxd5 {[%emt 0:00:58]} Qxd5 {[%emt 0:00:45]} 12. Qxd5 {[%emt 0:00:16]} Bxd5 {[%emt 0:00:05]} 13. O-O-O {[%emt 0:00:15]} O-O-O {[%emt 0:10:12]} 14. c4 {[%emt 0:13:01]} Be6 {[%emt 0:00:16]} 15. Be2 {[%emt 0:07:05]} b6 {[%emt 0:17:02]} 16. a3 {[%emt 0:12:27]} Rxd1+ {[%emt 0:12:04]} 17. Rxd1 {[%emt 0:01:07]} Rd8 {[%emt 0:00:04]} 18. Rxd8+ {[%emt 0:07:13]} Kxd8 {[%emt 0:00:09]} 19. f4 {[%emt 0:02:48]} h5 20. Bd3 {[%emt 0:06:40]} f5 {[%emt 0:10:10]} 21. Kc2 {[%emt 0:03:43]} Bf7 {[%emt 0:00:50]} 22. Nd2 {[%emt 0:31:30]} Bh6 {[%emt 0:08:36]} 23. g3 {[%emt 0:01:35]} e5 {[%emt 0:00:05]} 24. b4 {[%emt 0:02:29]} exf4 {[%emt 0:00:08]} 25. gxf4 {[%emt 0:01:20]} Kc7 {[%emt 0:00:23]} 26. Nf3 {[%emt 0:00:43]} Nd8 {[%emt 0:10:20]} 27. Nd4 {[%emt 0:01:42]} Ne6 {[%emt 0:00:14]} 28. Nxe6+ {[%emt 0:01:06]} Bxe6 {[%emt 0:00:05]} 29. Kc3 {[%emt 0:01:07]} Bf8 {[%emt 0:01:42]} 30. Be2 {[%emt 0:01:49]} Bd6 {[%emt 0:01:33]} 31. c5 {[%emt 0:00:12]} bxc5 {[%emt 0:00:47]} 32. bxc5 {[%emt 0:00:01]} Be7 {[%emt 0:00:16]} 33. Bf3 {[%emt 0:00:44]} a5 {[%emt 0:03:32]} 34. Bd4 {[%emt 0:00:34]} Kc8 {[%emt 0:00:35]} 35. Be2 {[%emt 0:01:35]} h4 {[%emt 0:06:14]} 36. Bc4 {[%emt 0:01:19]} Bd7 {[%emt 0:00:05]} 37. Bd5 {[%emt 0:00:35]} Bb5 {[%emt 0:01:07]} 38. Bf7 {[%emt 0:00:41]} g5 {[%emt 0:00:46]} 39. Be6+ {[%emt 0:00:19]} Bd7 {[%emt 0:00:23]} 40. Bd5 {[%emt 0:00:32]} Bb5 {[%emt 0:01:03]} 41. fxg5 {[%emt 0:00:30]} Bxg5 {[%emt 0:00:38]} 42. c6 {[%emt 0:00:45]} Bf4 {[%emt 0:00:46]} 43. h3 {[%emt 0:00:32]} Kc7 {[%emt 0:00:43]} 44. Be6 {[%emt 0:00:27]} Bd6 {[%emt 0:00:59]} 45. Bxf5 {[%emt 0:00:30]} Bxa3 {[%emt 0:00:14]} 46. Bf6 {[%emt 0:00:32]} Bb4+ {[%emt 0:00:13]} 47. Kb3 {[%emt 0:00:24]} Be1 {[%emt 0:00:20]} 48. Bd7 {[%emt 0:00:34]} a4+ {[%emt 0:06:30]} 49. Ka3 {[%emt 0:00:13]} Bg3 {[%emt 0:04:42]} 50. Kb4 {[%emt 0:00:21]} Bxc6 {[%emt 0:00:03]} 51. Bxc6 {[%emt 0:00:07]} Kxc6 {[%emt 0:00:03]} 52. Bxh4 {[%emt 0:00:11]} Bxh4 {[%emt 0:00:07]} 53. Kxa4 {[%emt 0:00:04]} Kd5 {[%emt 0:00:05]} 54. Ka5 {[%emt 0:00:05]} Ke5 1/2-1/2

[Event "European Union U14-ch 2024"]
[Site "Roznov pod Radhostem"]
[Date "2024.08.10"]
[Round "6.3"]
[White "Kincses, Emma"]
[Black "Ochkova, Maria"]
[Result "1-0"]
[ECO "A46"]
[WhiteElo "1618"]
[BlackElo "1553"]
[Annotator "NA RC"]
[PlyCount "25"]
[EventDate "2024.08.02"]
[EventType "swiss"]
[EventCountry "CZE"]
[SourceTitle "playchess.com"]
[Source "ChessBase"]
[SourceQuality "1"]
[TimeControl "5400+30"]

1. d4 {[%emt 0:00:03]} Nf6 {[%emt 0:00:14]} 2. Nf3 {[%emt 0:00:05]} c6 {[%emt 0:00:18]} 3. g3 {[%emt 0:00:11]} d5 {[%emt 0:00:14]} 4. Bg2 {[%emt 0:00:11]} e6 {[%emt 0:00:08]} 5. O-O {[%emt 0:00:09]} Be7 {[%emt 0:00:05]} 6. b3 {[%emt 0:00:20]} O-O {[%emt 0:00:30]} 7. Bb2 {[%emt 0:00:58]} b6 {[%emt 0:00:57]} 8. c4 {[%emt 0:00:47]} dxc4 {[%emt 0:00:30]} 9. bxc4 {[%emt 0:00:13]} Bb7 {[%emt 0:02:05]} 10. Qc2 {[%emt 0:08:38]} c5 {[%emt 0:00:29]} 11. dxc5 {[%emt 0:02:05]} Bxc5 {[%emt 0:00:41]} 12. Ng5 {[%emt 0:01:32]} Bxg2 {[%emt 0:22:02]} 13. Bxf6 {[%emt 0:00:28]} 1-0

[Event "European Union U14-ch 2024"]
[Site "Roznov pod Radhostem"]
[Date "2024.08.10"]
[Round "6.4"]
[White "Boros, David"]
[Black "Belocky, Daniel"]
[Result "0-1"]
[ECO "B90"]
[WhiteElo "1796"]
[BlackElo "1731"]
[Annotator "NA RC"]
[PlyCount "156"]
[EventDate "2024.08.02"]
[EventType "swiss"]
[EventCountry "CZE"]
[SourceTitle "playchess.com"]
[Source "ChessBase"]
[SourceQuality "1"]
[TimeControl "5400+30"]

1. e4 {[%emt 0:00:03]} c5 {[%emt 0:00:02]} 2. Nf3 {[%emt 0:04:02]} d6 {[%emt 0:00:19]} 3. d4 {[%emt 0:00:08]} cxd4 {[%emt 0:00:04]} 4. Nxd4 {[%emt 0:00:09]} Nf6 {[%emt 0:00:12]} 5. Nc3 {[%emt 0:01:40]} a6 {[%emt 0:00:04]} 6. a4 {[%emt 0:04:20]} e6 {[%emt 0:02:04]} 7. Be3 {[%emt 0:08:12]} e5 {[%emt 0:01:50]} 8. Nb3 {[%emt 0:04:01]} Be7 {[%emt 0:02:24]} 9. Be2 {[%emt 0:05:10]} Be6 {[%emt 0:00:48]} 10. O-O {[%emt 0:05:07]} Nbd7 {[%emt 0:00:44]} 11. f4 {[%emt 0:17:30]} Rc8 {[%emt 0:04:42]} 12. f5 {[%emt 0:03:20]} Bc4 {[%emt 0:00:59]} 13. Bxc4 {[%emt 0:00:53]} Rxc4 {[%emt 0:00:08]} 14. Nd2 {[%emt 0:02:16]} Rc6 {[%emt 0:01:53]} 15. Qe2 {[%emt 0:01:49]} g6 {[%emt 0:03:30]} 16. Nc4 {[%emt 0:05:47]} Qc7 {[%emt 0:01:36]} 17. b3 {[%emt 0:06:28]} Nc5 {[%emt 0:04:44]} 18. Bxc5 {[%emt 0:02:44]} Rxc5 19. Rad1 {[%emt 0:03:43]} O-O {[%emt 0:02:15]} 20. Nd5 {[%emt 0:12:47]} Nxd5 {[%emt 0:00:57]} 21. Rxd5 {[%emt 0:01:40]} Rxd5 {[%emt 0:00:07]} 22. exd5 {[%emt 0:00:21]} Qc5+ {[%emt 0:00:08]} 23. Qe3 {[%emt 0:04:01]} Qxe3+ {[%emt 0:02:58]} 24. Nxe3 {[%emt 0:00:02]} f6 {[%emt 0:00:30]} 25. Nc4 {[%emt 0:02:38]} Rc8 {[%emt 0:00:44]} 26. g4 {[%emt 0:03:51]} Rc5 {[%emt 0:00:32]} 27. Rd1 {[%emt 0:00:42]} Kg7 {[%emt 0:01:51]} 28. Kf2 {[%emt 0:00:26]} g5 {[%emt 0:03:07]} 29. Rd2 {[%emt 0:00:36]} Kf7 {[%emt 0:00:35]} 30. Kf3 {[%emt 0:00:26]} Ke8 {[%emt 0:00:34]} 31. Ke4 {[%emt 0:00:19]} b5 {[%emt 0:03:07]} 32. axb5 axb5 {[%emt 0:00:05]} 33. Ne3 {[%emt 0:00:55]} Bd8 {[%emt 0:00:51]} 34. c4 {[%emt 0:00:41]} Bb6 {[%emt 0:06:46]} 35. Ra2 {[%emt 0:00:39]} Rc7 {[%emt 0:00:08]} 36. Ra8+ {[%emt 0:00:20]} Kf7 {[%emt 0:00:35]} 37. Ra6 {[%emt 0:00:35]} Bxe3 {[%emt 0:01:25]} 38. Kxe3 {[%emt 0:00:02]} bxc4 {[%emt 0:00:07]} 39. bxc4 {[%emt 0:00:08]} Rxc4 {[%emt 0:00:05]} 40. Rxd6 {[%emt 0:00:37]} Rxg4 {[%emt 0:00:11]} 41. Rd7+ {[%emt 0:01:12]} Ke8 {[%emt 0:01:17]} 42. Rxh7 {[%emt 0:00:25]} Rd4 {[%emt 0:00:06]} 43. Rh6 {[%emt 0:00:24]} Kf7 {[%emt 0:00:10]} 44. Rh7+ {[%emt 0:00:12]} Kg8 {[%emt 0:00:10]} 45. Rd7 {[%emt 0:00:27]} Rf4 {[%emt 0:00:15]} 46. Re7 {[%emt 0:00:50]} Rd4 {[%emt 0:02:51]} 47. Re6 {[%emt 0:00:23]} Kg7 {[%emt 0:00:39]} 48. d6 {[%emt 0:00:34]} g4 {[%emt 0:00:18]} 49. Re7+ {[%emt 0:00:45]} Kh6 {[%emt 0:00:09]} 50. Re6 {[%emt 0:00:39]} Kg5 {[%emt 0:00:07]} 51. Re7 {[%emt 0:00:29]} Rxd6 {[%emt 0:00:09]} 52. Rg7+ {[%emt 0:00:07]} Kxf5 {[%emt 0:00:05]} 53. Rh7 {[%emt 0:00:30]} Kg6 {[%emt 0:00:13]} 54. Rh8 {[%emt 0:00:17]} f5 {[%emt 0:00:46]} 55. Rg8+ {[%emt 0:00:07]} Kf7 {[%emt 0:00:22]} 56. Ra8 {[%emt 0:00:43]} Rd4 {[%emt 0:00:33]} 57. Ra6 {[%emt 0:00:52]} f4+ {[%emt 0:00:46]} 58. Ke2 {[%emt 0:00:16]} Re4+ {[%emt 0:01:48]} 59. Kf2 {[%emt 0:00:18]} Re3 {[%emt 0:00:08]} 60. Rb6 {[%emt 0:01:11]} g3+ {[%emt 0:00:10]} 61. hxg3 {[%emt 0:00:30]} Rxg3 {[%emt 0:00:06]} 62. Ra6 {[%emt 0:00:29]} e4 {[%emt 0:00:51]} 63. Ra4 {[%emt 0:00:31]} e3+ {[%emt 0:00:12]} 64. Ke2 {[%emt 0:00:25]} Rg2+ {[%emt 0:00:06]} 65. Kf1 {[%emt 0:00:43]} Rf2+ {[%emt 0:00:06]} 66. Ke1 {[%emt 0:00:10]} Kf6 {[%emt 0:00:47]} 67. Ra5 {[%emt 0:00:25]} f3 {[%emt 0:00:12]} 68. Ra8 {[%emt 0:00:54]} Kg5 {[%emt 0:02:55]} 69. Rg8+ {[%emt 0:00:24]} Kf4 {[%emt 0:00:08]} 70. Rf8+ {[%emt 0:00:26]} Kg3 {[%emt 0:00:10]} 71. Re8 {[%emt 0:00:18]} Re2+ {[%emt 0:00:33]} 72. Kf1 {[%emt 0:00:31]} Rh2 {[%emt 0:00:00]} 73. Rg8+ {[%emt 0:00:28]} Kf4 {[%emt 0:00:00]} 74. Rf8+ {[%emt 0:00:16]} Ke4 {[%emt 0:00:00]} 75. Re8+ {[%emt 0:00:16]} Kd3 {[%emt 0:00:00]} 76. Rd8+ {[%emt 0:00:04]} Kc2 {[%emt 0:00:00]} 77. Rc8+ {[%emt 0:00:09]} Kd1 {[%emt 0:00:04]} 78. Rd8+ {[%emt 0:02:03]} Rd2 {[%emt 0:00:05]} 0-1